bitfinex/quotes_SOLUSD_20240930
["timestamp","ask_amount","ask_price","bid_price","bid_amount"]
[1727656071927,7.31022421,158.34,158.28,15.7942]
[1727656072130,7.81022421,158.33,158.3,6.3171]
[1727656072321,0.5,158.33,158.3,6.3171]
[1727656072652,21.91880645,158.38,158.29,6.3175]
[1727656072653,0.5,158.37,158.29,6.3175]
[1727656072852,7.31140024,158.36,158.29,6.3175]
[1727656073152,21.91880645,158.38,158.33,6.3158]
[1727656073153,7.31140024,158.35,158.33,6.3158]
[1727656073353,6.3137,158.39,158.33,6.3158]
[1727656073559,7.31298539,158.38,158.34,17.05137078]
[1727656073856,7.8136197,158.37,158.34,15.7883]
[1727656074041,7.3136197,158.36,158.34,15.7883]
[1727656075033,0.5,158.39,158.34,15.7883]
[1727656075253,7.31531984,158.38,158.34,15.7883]
[1727656075447,7.81531984,158.37,158.34,15.7883]
[1727656075648,7.31531984,158.36,158.34,15.7883]
[1727656075959,0.5,158.37,158.34,15.7883]
[1727656076341,0.5,158.37,158.3,31.5852]
[1727656076342,0.5,158.37,158.3,15.7922]
[1727656076550,13.56941391,158.36,158.3,22.1092]
[1727656076738,14.07011391,158.35,158.3,15.7922]
[1727656076959,6.3155,158.34,158.27,6.6571]
[1727656077143,0.5,158.33,158.27,6.6571]
[1727656077639,0.5,158.33,158.29,6.3173]
[1727656078238,6.3151,158.35,158.29,6.3173]
[1727656078439,7.75559268,158.34,158.29,6.3173]
[1727656078647,0.5,158.34,158.29,6.3173]
[1727656078849,0.5,158.34,158.26,31.1119]
[1727656078850,6.8155,158.34,158.26,31.1119]
[1727656079033,6.8155,158.34,158.24,6.3193]
[1727656079034,6.3171,158.3,158.24,6.3193]
[1727656079228,0.5,158.29,158.25,6.319]
[1727656079434,0.5,158.29,158.24,6.3194]
[1727656079633,6.3172,158.3,158.24,6.3194]
[1727656079849,44.027864,158.33,158.25,6.319]
[1727656080051,6.3168,158.31,158.25,6.319]
[1727656080233,0.12549,158.33,158.25,15.7974]
[1727656080435,14.06920061,158.32,158.25,15.7974]
[1727656080651,7.25280061,158.31,158.27,6.3182]
[1727656080851,7.25280061,158.31,158.28,6.3177]
[1727656081053,16.1542,158.34,158.28,6.3177]
[1727656081354,13.56952909,158.33,158.25,15.7974]
[1727656081557,6.3176,158.29,158.23,6.3195]
[1727656081858,6.818,158.28,158.21,22.1212]
[1727656082030,6.3183,158.27,158.21,22.1212]
[1727656082231,0.5,158.26,158.21,22.1212]
[1727656082433,6.3178,158.29,158.22,6.3203]
[1727656082639,14.06862389,158.28,158.23,6.3195]
[1727656082858,6.8179,158.28,158.23,6.3195]
[1727656083199,6.3175,158.29,158.23,6.3195]
[1727656083462,0.5,158.27,158.21,15.8009]
[1727656084462,6.3191,158.25,158.2,6.3208]
[1727656084664,6.3203,158.22,158.18,0.310177]
[1727656084961,6.44529,158.24,158.18,0.310177]
[1727656085260,6.82,158.23,158.18,0.310177]
[1727656085758,16.4676,158.25,158.19,6.3213]
[1727656086057,6.3194,158.25,158.2,6.321]
[1727656086259,6.3186,158.27,158.21,6.3206]
[1727656086433,24.027864,158.28,158.2,15.8025]
[1727656086434,14.07319174,158.26,158.2,22.1235]
[1727656086630,6.3179,158.28,158.2,15.8025]
[1727656086832,6.3179,158.28,158.22,6.3203]
[1727656086833,7.25474369,158.27,158.22,6.3203]
[1727656087034,7.25474369,158.27,158.21,6.3206]
[1727656087035,7.75474369,158.26,158.21,6.3206]
[1727656087258,0.5,158.26,158.21,6.3206]
[1727656087641,6.3195,158.24,158.2,15.8025]
[1727656087857,0.5,158.23,158.18,6.631677]
[1727656088039,20.0,158.28,158.18,6.631677]
[1727656088040,6.8206,158.22,158.18,0.310177]
[1727656088370,6.3215,158.19,158.18,0.310177]
[1727656088741,6.57248,158.19,158.18,0.310177]
[1727656089391,50.349364,158.19,158.18,0.310177]
[1727656089569,57.605833,158.19,158.18,0.310177]
[1727656090850,37.605833,158.19,158.18,0.310177]
[1727656091057,57.605833,158.19,158.18,0.310177]
[1727656091344,64.07824022,158.19,158.18,0.310177]
[1727656092241,57.605833,158.19,158.18,0.310177]
[1727656092444,13.577969,158.19,158.18,0.310177]
[1727656092741,7.256469,158.19,158.18,0.310177]
[1727656094645,13.577969,158.19,158.18,0.310177]
[1727656094834,64.08618395,158.19,158.18,0.310177]
[1727656095040,64.58618395,158.19,158.18,0.310177]
[1727656095238,57.32971495,158.19,158.18,0.310177]
[1727656095457,64.59105046,158.19,158.18,0.310177]
[1727656095649,67.97893205,158.19,158.18,0.310177]
[1727656095852,74.45933452,158.19,158.18,0.310177]
[1727656096043,64.09069056,158.19,158.18,0.310177]
[1727656096645,13.74132656,158.19,158.18,0.310177]
[1727656096860,13.58242409,158.19,158.18,0.310177]
[1727656098076,13.70791409,158.19,158.18,0.310177]
[1727656098471,33.70791409,158.19,158.18,0.310177]
[1727656098861,57.61028809,158.19,158.18,0.310177]
[1727656099280,40.30960266,158.19,158.18,0.310177]
[1727656099584,7.26092409,158.19,158.18,0.310177]
[1727656100272,7.26092409,158.19,158.18,6.632077]
[1727656100664,6.3192,158.25,158.2,6.321]
[1727656100856,7.7618997,158.24,158.2,6.3211]
[1727656101051,7.2618997,158.23,158.21,6.3207]
[1727656101283,7.2618997,158.22,158.21,6.3207]
[1727656101664,7.2618997,158.22,158.21,15.8013]
[1727656101981,7.2618997,158.27,158.21,15.8013]
[1727656102166,7.2618997,158.26,158.21,15.8013]
[1727656102372,7.2618997,158.25,158.24,6.3194]
[1727656102763,6.3159,158.33,158.27,6.318]
[1727656102958,23.230099,158.35,158.26,15.7964]
[1727656102959,7.26655415,158.32,158.26,15.7964]
[1727656103172,7.26655415,158.31,158.26,22.115]
[1727656103566,7.26655415,158.31,158.28,6.3177]
[1727656103766,7.26655415,158.3,158.28,6.3177]
[1727656103968,15.9682,158.35,158.26,22.1147]
[1727656103969,6.316,158.33,158.26,22.1147]
[1727656104179,7.70710969,158.32,158.27,6.3181]
[1727656104463,7.20710969,158.31,158.22,15.8001]
[1727656104793,6.3188,158.26,158.2,12.3568]
[1727656104979,0.5,158.25,158.2,6.0358]
[1727656105196,6.3183,158.27,158.22,6.3203]
[1727656105358,14.02242828,158.26,158.2,12.3568]
[1727656105559,0.12549,158.3,158.19,6.3214]
[1727656105560,6.8192,158.25,158.19,6.3214]
[1727656105864,0.5,158.24,158.18,16.114077]
[1727656106066,13.52201179,158.23,158.18,16.114077]
[1727656106266,0.5,158.22,158.18,16.114077]
[1727656106777,0.5,158.22,158.18,22.435877]
[1727656107080,0.5,158.22,158.18,16.114077]
[1727656107383,6.3207,158.21,158.18,0.310177]
[1727656107582,6.3203,158.23,158.18,0.310177]
[1727656107785,6.3205,158.22,158.18,0.310177]
[1727656107990,0.5,158.21,158.18,0.310177]
[1727656108292,6.3199,158.23,158.18,0.310177]
[1727656108792,6.3199,158.23,158.18,6.631977]
[1727656108992,0.25098,158.25,158.19,1.26416355]
[1727656108993,6.3194,158.25,158.19,1.26416355]
[1727656109295,6.3187,158.26,158.19,1.26416355]
[1727656109578,6.3195,158.24,158.19,6.3211]
[1727656109783,6.3195,158.24,158.18,0.310177]
[1727656109784,0.5,158.23,158.18,0.310177]
[1727656109969,6.3191,158.25,158.2,6.3208]
[1727656110373,7.7028204,158.24,158.2,6.3208]
[1727656110691,6.3179,158.28,158.22,6.3202]
[1727656110871,7.20200609,158.27,158.2,15.8025]
[1727656111075,7.20200609,158.26,158.23,15.7994]
[1727656111393,8.66899134,158.35,158.23,15.7994]
[1727656111394,0.5,158.31,158.23,15.7994]
[1727656111690,14.02076402,158.3,158.25,6.319]
[1727656111996,7.70356402,158.29,158.25,6.319]
[1727656112292,7.20356402,158.28,158.24,6.3193]
[1727656113861,6.3184,158.27,158.23,15.7994]
[1727656114068,0.5,158.26,158.23,15.7994]
[1727656114270,6.3184,158.27,158.23,15.7994]
[1727656115060,0.5,158.26,158.23,15.7994]
[1727656115794,6.5611708,158.34,158.23,17.06328489]
[1727656115970,6.3167,158.31,158.23,17.06328489]
[1727656116178,7.20399355,158.3,158.23,17.06328489]
[1727656116489,7.20399355,158.3,158.25,6.3188]
[1727656116490,13.52109355,158.3,158.25,6.3188]
[1727656116698,13.52109355,158.3,158.24,1.26358945]
[1727656116699,7.20399355,158.29,158.28,6.3179]
[1727656116870,6.3154,158.35,158.28,1.26333732]
[1727656117066,7.20659373,158.34,158.3,6.317]
[1727656117272,7.20659373,158.34,158.29,6.3175]
[1727656117273,7.20659373,158.33,158.29,6.3175]
[1727656117466,0.5,158.32,158.24,15.7978]
[1727656117667,0.5,158.32,158.25,6.319]
[1727656117981,6.3179,158.28,158.24,15.7978]
[1727656118184,6.3175,158.29,158.24,15.7978]
[1727656118378,6.3175,158.29,158.24,22.1172]
[1727656119094,6.3175,158.29,158.25,1.26368302]
[1727656119480,6.3175,158.29,158.24,22.1172]
[1727656120697,6.3171,158.3,158.24,22.1172]
[1727656120891,0.25098,158.33,158.24,22.1172]
[1727656120892,6.3167,158.31,158.25,1.26363704]
[1727656121081,7.14922086,158.3,158.25,1.26363704]
[1727656121282,6.3167,158.31,158.25,1.26363704]
[1727656121487,7.15282495,158.3,158.25,1.26363704]
[1727656121680,7.15282495,158.3,158.21,16.3848]
[1727656121681,15.7859,158.37,158.26,1.26355019]
[1727656121875,7.15357454,158.35,158.31,6.3166]
[1727656122090,7.15574028,158.34,158.31,6.3166]
[1727656122397,0.5,158.33,158.29,15.7936]
[1727656122783,15.7865,158.37,158.24,15.7978]
[1727656122983,0.5,158.36,158.24,15.7978]
[1727656123175,0.5,158.36,158.23,6.1444]
[1727656123176,6.3184,158.27,158.23,6.1444]
[1727656123502,6.3179,158.28,158.23,12.4642]
[1727656124188,6.3183,158.27,158.21,38.5067]
[1727656124379,7.1562528,158.27,158.23,6.3198]
[1727656124578,6.3183,158.27,158.22,6.3202]
[1727656126075,6.3171,158.3,158.25,6.319]
[1727656126470,6.3175,158.29,158.24,6.3195]
[1727656126683,0.5,158.28,158.23,15.7987]
[1727656126883,0.5,158.31,158.23,15.7987]
[1727656127399,6.3179,158.28,158.24,6.3195]
[1727656127604,6.3179,158.28,158.25,1.26368235]
[1727656128298,6.3179,158.28,158.23,22.1185]
[1727656128997,6.8187,158.27,158.22,6.3202]
[1727656129177,6.3188,158.26,158.21,16.3848]
[1727656129571,0.75098,158.31,158.21,16.3848]
[1727656129791,6.24564746,158.3,158.21,16.3848]
[1727656129990,6.3191,158.25,158.21,16.3848]
[1727656131403,6.8196,158.24,158.2,15.8026]
[1727656131580,6.82,158.23,158.18,6.631977]
[1727656131783,6.3195,158.24,158.19,6.3214]
[1727656132305,0.62549,158.28,158.18,0.310177]
[1727656132542,6.3199,158.23,158.18,6.631977]
[1727656133079,23.902374,158.27,158.18,6.631977]
[1727656133301,6.3203,158.22,158.18,0.310177]
[1727656134689,6.3208,158.21,158.18,0.310177]
[1727656135209,6.3197,158.24,158.18,6.632077]
[1727656135503,20.12549,158.27,158.18,6.632077]
[1727656135704,6.3199,158.23,158.18,6.632077]
[1727656135905,0.5,158.22,158.18,0.310177]
[1727656136402,6.3215,158.19,158.18,0.310177]
[1727656137793,6.8215,158.19,158.18,0.310177]
[1727656137996,7.07248,158.19,158.18,0.310177]
[1727656138391,26.3223,158.17,158.16,0.6963669]
[1727656138716,26.57328,158.17,158.16,0.6963669]
[1727656140211,6.3217,158.19,158.16,0.6963669]
[1727656140401,26.321,158.21,158.16,0.6963669]
[1727656140612,6.3216,158.19,158.16,0.6963669]
[1727656140916,20.0,158.21,158.16,0.6963669]
[1727656140917,6.8222,158.18,158.16,0.6963669]
[1727656141398,6.3223,158.17,158.16,0.6963669]
[1727656141904,6.3218,158.19,158.16,0.6963669]
[1727656142285,0.5,158.18,158.16,0.6963669]
[1727656143187,6.3223,158.17,158.16,0.6963669]
[1727656143999,6.3218,158.19,158.16,0.6963669]
[1727656144190,35.8009,158.22,158.16,0.6963669]
[1727656144191,26.3206,158.22,158.16,0.6963669]
[1727656144400,6.3206,158.22,158.16,1.96071913]
[1727656144710,6.3207,158.21,158.16,1.96071913]
[1727656144892,6.3207,158.21,158.16,0.6963669]
[1727656145787,6.3215,158.19,158.16,0.6963669]
[1727656146002,0.5,158.18,158.16,0.6963669]
[1727656146210,6.3214,158.2,158.16,0.6963669]
[1727656146507,20.0,158.25,158.16,7.0189669]
[1727656146714,20.0,158.23,158.16,7.0189669]
[1727656146919,0.5,158.22,158.16,7.0189669]
[1727656147797,20.0,158.25,158.17,16.59600957]
[1727656147994,20.0,158.25,158.18,6.3215]
[1727656148190,6.3198,158.24,158.19,15.8037]
[1727656148415,0.5,158.23,158.17,15.3317]
[1727656148717,6.3211,158.2,158.16,0.6963669]
[1727656148915,0.5,158.19,158.16,0.6963669]
[1727656149212,6.3211,158.2,158.16,0.6963669]
[1727656149599,20.0,158.27,158.17,1.26439469]
[1727656149804,6.3199,158.23,158.17,6.3222]
[1727656150803,6.8203,158.22,158.16,0.6963669]
[1727656150995,6.8207,158.21,158.16,0.6963669]
[1727656151203,6.3207,158.21,158.16,0.6963669]
[1727656151712,6.3198,158.24,158.18,6.3218]
[1727656152094,6.3198,158.24,158.19,1.26416613]
[1727656152319,6.3199,158.23,158.19,1.26416613]
[1727656152513,6.3193,158.25,158.19,7.58556613]
[1727656152691,6.54500022,158.28,158.19,1.26416613]
[1727656152895,12.56303035,158.27,158.21,6.3206]
[1727656153107,6.24463035,158.26,158.21,6.3206]
[1727656153315,12.56333035,158.26,158.21,6.3206]
[1727656153507,6.3187,158.26,158.21,6.3206]
[1727656153705,6.3183,158.27,158.21,21.3376]
[1727656154009,13.06117902,158.26,158.21,21.3376]
[1727656154209,6.8191,158.25,158.21,15.017]
[1727656154512,6.3191,158.25,158.21,15.017]
[1727656154726,6.32,158.23,158.21,15.017]
[1727656154925,6.32,158.23,158.18,15.8047]
[1727656155806,0.62549,158.28,158.17,16.1073]
[1727656156013,6.3204,158.22,158.17,16.1073]
[1727656156826,6.3211,158.2,158.17,16.1073]
[1727656157024,0.5,158.19,158.16,0.6963669]
[1727656157202,6.3223,158.17,158.16,0.6963669]
[1727656159313,50.350164,158.17,158.16,0.6963669]
[1727656159617,6.3246,158.12,158.07,6.4653]
[1727656159831,6.8247,158.11,158.07,6.4653]
[1727656160007,6.3247,158.11,158.07,6.4653]
[1727656160322,0.5,158.16,158.07,6.4653]
[1727656160323,6.3243,158.12,158.07,6.4653]
[1727656160824,6.3251,158.1,158.07,6.4653]
[1727656161024,0.5,158.09,158.02,0.810177]
[1727656161321,6.3268,158.06,158.02,0.810177]
[1727656161526,0.5,158.05,158.02,0.810177]
[1727656161833,6.8271,158.05,158.02,0.310177]
[1727656162014,6.3275,158.04,158.02,0.310177]
[1727656162324,6.8279,158.03,158.02,0.310177]
[1727656162631,44.027864,158.07,158.02,0.310177]
[1727656162797,0.5,158.06,158.02,0.310177]
[1727656163117,26.3271,158.06,158.02,0.310177]
[1727656163498,6.3264,158.07,158.02,0.310177]
[1727656163702,20.0,158.13,158.02,16.130477]
[1727656164135,6.3256,158.09,158.02,16.130477]
[1727656164426,6.3263,158.07,158.02,16.130477]
[1727656164630,0.5,158.06,158.02,16.130477]
[1727656165524,6.3263,158.07,158.02,22.458677]
[1727656165825,0.5,158.06,158.02,22.458677]
[1727656166005,0.5,158.06,158.02,16.130477]
[1727656166207,6.3261,158.08,158.02,22.458577]
[1727656166405,0.5,158.07,158.02,22.458577]
[1727656166810,0.5,158.06,158.02,22.458377]
[1727656167009,0.5,158.08,158.02,22.458377]
[1727656167209,0.5,158.08,158.02,0.310177]
[1727656167210,6.3267,158.06,158.02,0.310177]
[1727656167428,0.5,158.05,158.02,0.310177]
[1727656167628,6.3267,158.06,158.02,0.310177]
[1727656168111,6.3263,158.07,158.02,0.310177]
[1727656168315,6.3259,158.08,158.02,0.310177]
[1727656168621,6.3258,158.09,158.03,6.3278]
[1727656168830,26.325,158.11,158.05,6.327]
[1727656169154,6.3243,158.12,158.06,6.3266]
[1727656169329,22.5963,158.19,158.07,17.08061583]
[1727656169508,6.3225,158.17,158.11,6.3246]
[1727656169701,6.3227,158.16,158.11,6.3246]
[1727656169932,6.6054,158.19,158.12,6.3242]
[1727656170227,6.3223,158.17,158.12,6.3242]
[1727656170431,6.3223,158.17,158.1,15.8125]
[1727656170726,6.3231,158.15,158.07,1.2647741]
[1727656170933,22.33777437,158.21,158.1,6.3249]
[1727656171135,22.33777437,158.21,158.09,15.8136]
[1727656171136,6.3236,158.14,158.09,15.8136]
[1727656171318,0.5,158.13,158.09,15.8136]
[1727656171927,6.824,158.13,158.07,6.3262]
[1727656172129,0.5,158.12,158.07,6.3262]
[1727656172318,6.8244,158.12,158.07,6.3262]
[1727656172515,6.8244,158.12,158.06,12.5292]
[1727656172836,0.5,158.11,158.06,12.5292]
[1727656173028,6.3251,158.1,158.06,6.2026]
[1727656173211,6.3251,158.1,158.05,22.144]
[1727656173410,15.8078,158.15,158.05,22.144]
[1727656173411,6.3247,158.11,158.05,22.144]
[1727656173606,6.3247,158.11,158.06,6.3267]
[1727656174033,6.3259,158.08,158.03,22.4523]
[1727656174218,6.8264,158.07,158.02,22.304377]
[1727656174414,15.8108,158.12,158.02,22.304377]
[1727656174415,0.12549,158.1,158.02,22.304377]
[1727656174627,20.5,158.11,158.02,22.304377]
[1727656174628,6.3263,158.07,158.02,28.632677]
[1727656174827,6.3263,158.07,158.02,22.459177]
[1727656175030,0.5,158.06,158.02,22.459177]
[1727656175535,6.8271,158.06,158.02,0.310177]
[1727656175832,0.5,158.05,158.02,0.310177]
[1727656176030,6.3271,158.06,158.02,0.310177]
[1727656177012,6.3263,158.07,158.02,0.310177]
[1727656177515,6.3279,158.03,158.02,0.310177]
[1727656177738,0.12549,158.07,158.02,0.310177]
[1727656178021,6.327,158.06,158.02,0.310177]
[1727656178226,6.3275,158.04,158.02,0.310177]
[1727656178430,20.0,158.06,158.02,0.310177]
[1727656178920,6.8273,158.05,158.02,0.310177]
[1727656179513,6.3273,158.05,158.02,0.310177]
[1727656179713,0.5,158.04,158.02,0.310177]
[1727656180316,6.8275,158.04,158.02,0.310177]
[1727656180516,0.5,158.03,158.02,0.310177]
[1727656180818,6.3269,158.06,158.02,0.310177]
[1727656181318,20.0,158.11,158.02,0.310177]
[1727656181319,6.3262,158.08,158.02,0.310177]
[1727656181637,0.5,158.07,158.02,0.310177]
[1727656181835,6.3276,158.04,158.02,0.310177]
[1727656182040,0.5,158.03,158.02,0.310177]
[1727656183142,20.5,158.03,158.02,0.310177]
[1727656183329,6.3276,158.04,158.02,0.310177]
[1727656184385,0.5,158.03,158.02,0.310177]
[1727656185045,20.75098,158.03,158.02,0.310177]
[1727656185246,20.5,158.03,158.02,0.310177]
[1727656185542,20.25098,158.03,158.02,0.310177]
[1727656186442,50.355764,158.03,158.02,0.310177]
[1727656187139,26.57888,158.03,158.02,0.310177]
[1727656187731,27.07888,158.03,158.02,0.310177]
[1727656187931,50.355764,158.03,158.02,0.310177]
[1727656189046,26.57888,158.03,158.02,0.310177]
[1727656190943,50.355764,158.03,158.02,0.310177]
[1727656191742,50.855764,158.03,158.02,0.310177]
[1727656193151,57.39125997,158.03,158.02,0.310177]
[1727656193957,56.89125997,158.03,158.02,0.310177]
[1727656194146,57.39125997,158.03,158.02,0.310177]
[1727656194749,6.331,157.96,157.93,8.58635719]
[1727656194929,6.8311,157.95,157.93,8.58635719]
[1727656195130,6.3311,157.95,157.93,8.58635719]
[1727656195329,39.848964,158.02,157.93,8.58635719]
[1727656195537,6.3303,157.97,157.93,8.58635719]
[1727656195842,6.3309,157.96,157.93,8.58635719]
[1727656196238,6.3307,157.96,157.93,8.58635719]
[1727656196438,6.3311,157.95,157.93,8.58635719]
[1727656197739,0.12549,158.02,157.93,8.58635719]
[1727656198080,6.53549597,158.03,157.99,6.3294]
[1727656198237,22.412,158.09,157.99,6.3294]
[1727656198238,6.3278,158.04,157.99,6.3294]
[1727656198441,6.3278,158.04,157.98,15.8247]
[1727656198442,6.3279,158.03,157.98,15.8247]
[1727656198756,6.3278,158.04,157.98,22.1545]
[1727656198948,28.94747246,158.09,157.98,22.1545]
[1727656198949,28.94747246,158.09,157.99,17.68301274]
[1727656199176,6.3263,158.07,158.0,17.08738147]
[1727656199365,6.3263,158.07,158.02,6.3282]
[1727656199560,6.3263,158.07,158.01,6.3286]
[1727656199854,6.3263,158.07,158.02,6.3282]
[1727656200060,6.3263,158.07,158.02,7.59361674]
[1727656200263,6.53511832,158.13,158.03,17.08512252]
[1727656200469,6.3249,158.11,158.04,6.3271]
[1727656200767,0.5,158.1,158.01,6.3283]
[1727656201060,0.5,158.1,157.99,32.2404]
[1727656201241,6.3278,158.04,157.99,32.2404]
[1727656201436,6.828,158.03,157.99,16.4173]
[1727656201639,0.5,158.02,157.97,6.2824]
[1727656201850,20.12549,158.07,157.97,6.2824]
[1727656202235,20.25098,158.05,157.97,6.2824]
[1727656202435,0.25098,158.03,157.95,31.2807]
[1727656202656,0.25098,158.03,157.93,8.58635719]
[1727656202657,6.3299,157.98,157.93,8.58635719]
[1727656202964,0.5,157.97,157.93,8.58635719]
[1727656203260,6.3311,157.95,157.93,8.58635719]
[1727656203572,0.5,157.94,157.93,8.58635719]
[1727656203864,6.3305,157.97,157.93,8.58635719]
[1727656204044,6.3311,157.95,157.93,8.58635719]
[1727656204243,6.3306,157.97,157.93,8.58635719]
[1727656204445,6.3309,157.96,157.93,8.58635719]
[1727656204636,0.12549,157.98,157.93,8.58635719]
[1727656204841,6.3311,157.95,157.93,8.58635719]
[1727656205065,20.62549,157.94,157.93,8.58635719]
[1727656205359,20.75098,157.94,157.93,8.58635719]
[1727656206269,20.0,157.92,157.86,0.810177]
[1727656206570,6.3332,157.9,157.86,0.810177]
[1727656206943,20.0,157.97,157.87,7.60098322]
[1727656207266,6.3319,157.93,157.86,0.810177]
[1727656207562,6.3315,157.94,157.87,6.3341]
[1727656208065,0.5,157.93,157.87,6.3341]
[1727656208248,20.0,157.94,157.88,6.3338]
[1727656208560,0.5,157.93,157.87,6.3341]
[1727656208872,0.5,157.93,157.86,7.144677]
[1727656209038,6.8323,157.92,157.86,0.810177]
[1727656209247,6.3323,157.92,157.86,0.810177]
[1727656209564,6.3339,157.88,157.86,0.810177]
[1727656209737,6.3333,157.9,157.86,0.810177]
[1727656209946,20.0,157.91,157.86,0.810177]
[1727656210344,6.8331,157.9,157.86,0.810177]
[1727656210742,6.3331,157.9,157.86,0.810177]
[1727656211561,6.8335,157.89,157.86,0.810177]
[1727656211745,0.5,157.88,157.86,0.810177]
[1727656211935,20.0,157.9,157.86,0.810177]
[1727656212456,0.5,157.89,157.86,0.810177]
[1727656212641,26.3322,157.93,157.87,6.3343]
[1727656212838,50.362164,157.87,157.86,0.810177]
[1727656213137,20.0,157.87,157.86,0.810177]
[1727656213353,6.8341,157.88,157.86,0.810177]
[1727656213557,6.3333,157.9,157.86,0.810177]
[1727656213765,0.5,157.91,157.86,0.810177]
[1727656213973,0.5,157.91,157.87,6.3339]
[1727656214180,0.5,157.91,157.86,0.810177]
[1727656214465,6.3331,157.9,157.86,0.810177]
[1727656214767,0.5,157.89,157.86,0.810177]
[1727656214968,6.3336,157.89,157.86,0.810177]
[1727656215139,0.5,157.88,157.86,0.810177]
[1727656215563,6.8339,157.88,157.86,0.810177]
[1727656215870,6.3339,157.89,157.86,0.810177]
[1727656216172,0.5,157.88,157.86,0.810177]
[1727656216466,6.8339,157.88,157.86,0.810177]
[1727656216673,0.5,157.87,157.86,0.810177]
[1727656216968,6.3339,157.88,157.86,0.810177]
[1727656217141,6.8343,157.87,157.86,0.810177]
[1727656217338,6.45979,157.87,157.86,0.810177]
[1727656217562,6.3343,157.87,157.86,0.810177]
[1727656217865,6.3339,157.88,157.86,0.810177]
[1727656218160,0.5,157.87,157.86,0.810177]
[1727656218673,6.3343,157.87,157.86,0.810177]
[1727656219038,6.3334,157.9,157.86,0.810177]
[1727656219241,20.0,157.91,157.86,0.810177]
[1727656219464,20.0,157.89,157.86,0.810177]
[1727656219763,26.3335,157.89,157.86,0.810177]
[1727656220063,6.3335,157.89,157.86,0.810177]
[1727656220267,6.333,157.91,157.86,7.144877]
[1727656220444,6.8331,157.9,157.86,0.810177]
[1727656220643,6.3331,157.9,157.86,0.810177]
[1727656221051,6.8335,157.89,157.86,0.810177]
[1727656221253,0.5,157.88,157.86,0.810177]
[1727656221452,6.3343,157.87,157.86,0.810177]
[1727656221667,6.3339,157.88,157.86,0.810177]
[1727656221870,6.8343,157.87,157.86,0.810177]
[1727656222069,6.3343,157.87,157.86,0.810177]
[1727656222275,26.58528,157.87,157.86,0.810177]
[1727656222574,6.3351,157.85,157.84,0.6963669]
[1727656222867,50.862964,157.85,157.84,0.6963669]
[1727656223269,44.527864,157.85,157.75,15.8477]
[1727656223475,6.3383,157.77,157.73,16.4446]
[1727656223649,6.3391,157.75,157.71,16.661277]
[1727656223972,94.027864,157.84,157.71,0.810177]
[1727656223973,6.8395,157.74,157.71,0.810177]
[1727656224187,0.25098,157.79,157.71,0.810177]
[1727656224473,0.25098,157.77,157.71,0.810177]
[1727656224648,0.5,157.76,157.71,0.810177]
[1727656224858,0.25098,157.75,157.71,0.810177]
[1727656225063,6.3399,157.73,157.71,0.810177]
[1727656225299,7.09128,157.72,157.71,0.810177]
[1727656225462,27.09128,157.72,157.71,0.810177]
[1727656225880,20.5,157.72,157.71,0.810177]
[1727656226075,20.0,157.75,157.71,0.310177]
[1727656226386,0.5,157.74,157.71,0.310177]
[1727656226776,0.25098,157.77,157.71,0.310177]
[1727656227291,0.5,157.76,157.71,0.310177]
[1727656227462,20.0,157.79,157.71,0.310177]
[1727656227668,20.0,157.79,157.71,16.161377]
[1727656227892,8.66927246,157.83,157.76,6.3386]
[1727656228065,9.08293269,157.86,157.74,15.8481]
[1727656228066,0.5,157.82,157.74,15.8481]